bitfinex-derivatives/quotes_ETHF0:USTF0_20241104
["timestamp","ask_amount","ask_price","bid_price","bid_amount"]
[1730746914339,0.41214,2427.8,2427.7,0.41213]
[1730746914527,2.70103878,2427.9,2427.6,1.33581486]
[1730746914729,3.11315878,2427.9,2427.8,3.61992]
[1730746915433,3.11315878,2427.9,2427.8,0.41212]
[1730746916829,0.41212,2427.8,2427.7,0.41212]
[1730746919446,2.70103878,2427.9,2427.6,1.33581486]
[1730746919630,0.41212,2427.9,2427.8,3.61992]
[1730746922845,3.11311878,2428.0,2427.9,0.4121]
[1730746923037,3.11311878,2428.1,2428.0,0.41208]
[1730746923237,3.54569878,2428.2,2428.1,0.41207]
[1730746923437,2.70103878,2428.2,2428.1,0.41207]
[1730746923746,43.91308878,2428.2,2428.1,0.41207]
[1730746924251,0.41208,2428.0,2427.9,3.09380486]
[1730746924556,0.84467,2428.1,2428.0,0.41208]
[1730746924844,4.97621486,2428.1,2427.7,1.07813108]
[1730746925055,3.54571878,2428.1,2427.9,4.95571486]
[1730746925242,40.8,2428.2,2428.1,0.41207]
[1730746925544,40.8,2428.2,2428.1,1.33581486]
[1730746926851,41.21205,2428.2,2428.1,1.33581486]
[1730746928548,40.8,2428.2,2428.1,1.33581486]
[1730746928749,2.70103878,2428.6,2428.5,0.412]
[1730746928947,0.41198,2428.7,2428.6,0.8931]
[1730746929245,0.412,2428.5,2428.4,4.54361486]
[1730746929450,0.446,2428.6,2428.1,1.33581486]
[1730746929642,0.41205,2428.2,2428.1,1.33581486]
[1730746929953,0.8582,2428.4,2428.0,5.45271486]
[1730746930252,0.41206,2428.2,2428.0,5.86478486]
[1730746930546,0.41206,2428.2,2428.1,1.74788486]
[1730746935547,3.24303878,2428.6,2428.1,6.79002972]
[1730746935747,0.41202,2428.5,2428.4,0.412]
[1730746936052,0.41202,2428.5,2428.4,3.6198]
[1730746936251,0.412,2428.6,2428.5,0.41198]
[1730746936458,0.412,2428.6,2428.5,2.20759486]
[1730746936937,0.412,2428.6,2428.5,5.41539486]
[1730746937446,0.4317,2428.8,2428.5,5.00341486]
[1730746937644,0.41197,2428.7,2428.6,0.41196]
[1730746938150,40.8,2428.9,2428.5,3.6676]
[1730746938357,2.79703878,2429.1,2428.8,4.95555486]
[1730746938649,0.4119,2429.1,2429.0,1.33581486]
[1730746938850,41.2119,2429.1,2429.0,1.33581486]
[1730746939061,40.8,2429.1,2429.0,3.2078]
[1730746939245,40.8,2429.1,2428.7,1.33581486]
[1730746939448,0.41195,2428.8,2428.5,0.4554]
[1730746939653,1.3111,2428.7,2428.2,3.2078]
[1730746939847,1.3111,2428.7,2428.1,0.4554]
[1730746940055,1.3111,2428.7,2428.0,4.28593108]
[1730746940056,0.41207,2428.1,2428.0,3.2078]
[1730746940353,4.20416099,2428.7,2427.9,3.61989]
[1730746940354,0.41209,2428.0,2427.9,3.61989]
[1730746940751,41.21209,2428.0,2427.9,3.61989]
[1730746942051,41.21209,2428.0,2427.9,3.2078]
[1730746943049,41.21208,2428.0,2427.9,3.2078]
[1730746943252,41.21208,2428.0,2427.9,3.6199]
[1730746943659,41.21208,2428.0,2427.9,3.2078]
[1730746944054,0.4121,2427.9,2427.8,0.8675]
[1730746944250,0.096,2428.5,2427.9,7.42356099]
[1730746944555,0.41205,2428.3,2428.2,6.51290099]
[1730746945255,0.41203,2428.4,2428.3,0.41202]
[1730746945454,0.41203,2428.4,2428.3,3.6331]
[1730746946760,0.41203,2428.4,2428.3,0.4253]
[1730746947353,0.41207,2428.1,2428.0,6.51293099]
[1730746947759,0.41207,2428.1,2428.0,3.2078]
[1730746947957,0.4121,2427.9,2427.8,2.89306099]
[1730746948161,0.41213,2427.7,2427.6,3.73050099]
[1730746948458,0.38423,2427.7,2427.6,6.93830099]
[1730746949155,41.83018,2428.1,2427.6,6.93830099]
[1730746949156,0.41213,2427.8,2427.7,0.41211]
[1730746950761,0.41213,2427.8,2427.7,3.61991]
[1730746951262,0.41211,2427.9,2427.8,0.4121]
[1730746952961,0.41212,2427.8,2427.7,3.61993]
[1730746955264,0.41212,2427.9,2427.8,0.41211]
[1730746957950,0.41212,2427.8,2427.7,3.61992]
[1730746958562,0.41212,2427.9,2427.8,0.41211]
[1730746959057,1.03022,2428.0,2427.6,3.73736099]
[1730746959254,0.41213,2427.7,2427.6,0.8443]
[1730746959455,0.41215,2427.6,2427.5,0.85747]
[1730746959652,0.41215,2427.7,2427.6,0.41214]
[1730746959857,0.41215,2427.7,2427.6,3.61994]
[1730746960062,0.85082,2427.8,2427.7,0.41213]
[1730746960259,0.41212,2427.8,2427.7,0.87503]
[1730746960666,0.41211,2427.9,2427.8,0.41211]
[1730746960860,0.41211,2427.9,2427.8,0.85951]
[1730746961569,0.41211,2427.9,2427.8,0.4474]
[1730746962364,0.41211,2427.9,2427.8,0.85952]
[1730746963066,0.85429,2428.0,2427.9,0.4121]
[1730746963364,0.85429,2428.0,2427.9,3.61989]
[1730746963365,0.41208,2428.0,2427.9,3.61989]
[1730746963566,0.41208,2428.0,2427.9,4.04539]
[1730746966772,0.41208,2428.0,2427.9,0.83759]
[1730746967171,43.39542377,2428.1,2428.0,0.41208]
[1730746967172,41.65078,2428.1,2428.0,0.41208]
[1730746967470,41.65078,2428.1,2428.0,3.61988]
[1730746967665,41.2387,2428.1,2428.0,3.2078]
[1730746968071,41.2387,2428.1,2427.9,0.83759]
[1730746968271,0.41208,2428.0,2427.9,0.83759]
[1730746968976,2.15765674,2428.1,2428.0,0.41208]
[1730746969273,0.41205,2428.2,2428.0,2.89306099]
[1730746969474,41.21206,2428.2,2428.1,0.41205]
[1730746970171,0.41207,2428.1,2428.0,3.30513099]
[1730746972476,0.41207,2428.1,2428.0,0.41207]
[1730746974974,0.41207,2428.1,2428.0,3.61987]
[1730746975475,0.41207,2428.1,2428.0,4.16756012]
[1730746975880,0.41207,2428.1,2428.0,3.61987]
[1730746976780,1.4422,2428.2,2428.0,3.2078]
[1730746976976,1.4422,2428.2,2427.8,0.4474]
[1730746976977,0.4121,2427.9,2427.8,0.4474]
[1730746977176,0.4121,2427.9,2427.8,1.40737349]
[1730746977478,0.4121,2427.9,2427.8,1.40728607]
[1730746977681,0.4121,2427.9,2427.8,0.85952]
[1730746978980,0.4121,2427.9,2427.8,1.40725437]
[1730746979380,2.15757953,2428.2,2427.8,5.11433437]
[1730746979581,0.4121,2428.0,2427.9,0.95977656]
[1730746979774,0.4121,2428.0,2427.9,4.16757656]
[1730746979976,0.4121,2428.0,2427.9,3.61987]
[1730746980585,2.59467953,2428.3,2427.9,7.3262]
[1730746980884,2.59467953,2428.3,2428.1,0.41205]
[1730746980885,0.41206,2428.2,2428.1,0.41205]
[1730746981181,42.95757953,2428.4,2428.0,4.35577099]
[1730746981391,43.36961953,2428.4,2428.3,0.41203]
[1730746981583,41.21204,2428.4,2428.3,0.41203]
[1730746981783,0.41204,2428.4,2428.3,0.41203]
[1730746982078,0.41205,2428.3,2428.2,0.41204]
[1730746982284,0.41205,2428.3,2428.2,0.86304]
[1730746982886,44.45209953,2428.5,2428.3,0.41202]
[1730746982887,0.41203,2428.4,2428.3,0.41202]
[1730746983077,0.41203,2428.4,2428.3,0.83863]
[1730746985683,0.41203,2428.4,2428.3,0.4266]
[1730746985884,0.41203,2428.3,2428.2,3.2078]
[1730746986092,0.4121,2428.0,2427.9,3.6199]
[1730746986389,2.57155095,2428.0,2427.9,3.6199]
[1730746986787,0.4121,2428.0,2427.9,3.6199]
[1730746987087,0.4121,2428.0,2427.9,4.16840901]
[1730746987287,0.4121,2428.0,2427.9,3.75630901]
[1730746987788,0.4121,2427.9,2427.8,3.6441]
[1730746987987,0.4121,2427.9,2427.8,4.60476633]
[1730746989293,0.4121,2427.9,2427.8,4.19264633]
[1730746989590,4.5313,2427.9,2427.8,3.75634633]
[1730746989795,4.5313,2427.9,2427.8,0.54854633]
[1730746990089,0.41212,2427.8,2427.7,3.61993]
[1730746990288,0.41212,2427.8,2427.7,3.75635888]
[1730746990494,0.41212,2427.8,2427.7,0.54855888]
[1730746990695,0.41212,2427.8,2427.7,0.96068888]
[1730746990890,0.41212,2427.8,2427.7,0.96058528]
[1730746991095,0.41212,2427.8,2427.7,0.41213]
[1730746991395,0.41212,2427.8,2427.7,0.96059968]
[1730746991984,2.60805095,2427.9,2427.7,0.54846968]
[1730746992189,2.60805095,2427.9,2427.8,0.41212]
[1730746992699,2.15945095,2427.9,2427.8,0.41212]
[1730746992891,2.57155095,2428.0,2427.6,5.31631108]
[1730746993088,2.57155095,2428.0,2427.9,0.4121]
[1730746993293,2.1599759,2428.0,2427.9,3.2078]
[1730746993495,2.1599759,2428.0,2427.9,6.51295099]
[1730746993796,0.41207,2428.1,2428.0,0.41208]
[1730746993987,3.14501369,2428.4,2428.0,0.98461911]
[1730746993988,2.1599759,2428.3,2428.0,0.98461911]
[1730746994191,0.41207,2428.2,2428.1,0.96057911]
[1730746994498,0.41207,2428.2,2428.1,4.16837911]
[1730746995005,0.41207,2428.2,2428.1,3.61986]
[1730746995307,0.41207,2428.2,2428.1,4.16823326]
[1730746995510,0.41207,2428.2,2428.0,4.96757]
[1730746995511,0.41207,2428.1,2428.0,4.96757]
[1730746995800,0.41207,2428.1,2428.0,5.51595803]
[1730746996000,2.5720159,2428.3,2428.2,0.41205]
[1730746997203,2.1599759,2428.3,2428.2,0.41205]
[1730746998404,2.5719959,2428.4,2428.0,6.66384108]
[1730746998603,2.5719959,2428.4,2428.3,0.41203]
[1730746998805,2.1599759,2428.4,2428.3,0.41203]
[1730746999004,2.5719959,2428.4,2428.3,0.41203]
[1730746999209,0.41202,2428.4,2428.3,0.41203]
[1730746999414,2.5719959,2428.4,2428.3,0.41203]
[1730747002206,2.1599759,2428.4,2428.3,0.41203]
[1730747002406,2.1599759,2428.5,2428.4,0.41202]
[1730747002607,0.111,2428.9,2428.5,0.412]
[1730747002608,2.5719759,2428.6,2428.5,0.412]
[1730747002807,0.412,2428.6,2428.5,0.412]
[1730747003207,0.412,2428.6,2428.5,0.95987085]
[1730747003409,43.3719459,2428.7,2428.6,0.41198]
[1730747004412,41.21197,2428.7,2428.6,0.41198]
[1730747005810,41.21196,2428.7,2428.6,0.41198]
[1730747009118,40.8,2428.7,2428.6,0.41198]
[1730747009510,2.1599759,2428.8,2428.7,0.41196]
[1730747009722,0.41194,2428.9,2428.8,0.41193]
[1730747009917,0.41193,2428.9,2428.6,1.44194]
[1730747010122,0.41193,2428.9,2428.8,0.41195]
[1730747010624,2.5719059,2428.9,2428.8,0.41195]
[1730747012312,2.1599759,2429.0,2428.9,0.41193]
[1730747012515,2.5718459,2429.3,2428.9,3.33176099]
[1730747012716,2.5718459,2429.3,2429.2,0.41188]
[1730747012919,0.41187,2429.3,2429.2,3.61968]
[1730747013311,0.4547,2429.4,2429.1,0.4238]
[1730747013518,2.6146759,2429.4,2429.2,3.2078]
[1730747013716,3.6442959,2429.4,2429.1,0.83568]
[1730747013925,2.6146759,2429.4,2429.3,3.2078]
[1730747014119,0.86655,2429.4,2429.3,3.2078]
[1730747014520,0.86655,2429.4,2429.2,0.41187]
[1730747014715,0.4547,2429.4,2429.1,4.04348]
[1730747015023,0.41188,2429.2,2429.1,4.04348]
[1730747015419,0.86656,2429.4,2429.3,0.41186]
[1730747015619,0.41187,2429.3,2429.2,0.41186]
[1730747018421,0.4547,2429.4,2429.1,3.6316]
[1730747018721,0.41188,2429.2,2429.1,4.04348]
[1730747018917,0.41187,2429.3,2429.2,0.41186]
[1730747020126,41.21183,2429.5,2429.4,0.41185]
[1730747020533,40.8,2429.5,2429.4,0.41185]
[1730747020717,40.8,2429.5,2429.4,0.86855]
[1730747021221,41.21183,2429.5,2429.4,0.86855]
[1730747022731,41.21183,2429.5,2429.4,0.4567]
[1730747023026,41.21183,2429.5,2429.4,0.86855]
[1730747024128,40.8,2429.5,2429.4,3.76161099]
[1730747024318,40.8,2429.5,2429.4,7.87761099]
[1730747024519,0.41179,2429.8,2429.7,0.41179]
[1730747024717,0.4198,2430.0,2429.7,3.2078]
[1730747024927,0.4568,2430.1,2429.8,0.4328]
[1730747025225,0.41172,2430.2,2430.1,0.41171]
[1730747025430,41.21172,2430.2,2430.1,0.41171]
[1730747025629,41.21172,2430.2,2430.0,0.41173]
[1730747025630,0.41174,2430.1,2430.0,0.41173]
[1730747027031,40.8,2430.2,2430.1,0.41173]
[1730747027729,41.21171,2430.2,2430.1,0.41173]
[1730747028227,0.4244,2430.7,2430.1,5.14453]
[1730747028423,0.41165,2430.6,2430.5,0.41164]
[1730747028622,40.8,2430.6,2430.5,0.41164]
[1730747028818,41.21164,2430.6,2430.5,0.41164]
[1730747031132,40.8,2430.6,2430.4,0.9259]
[1730747031332,0.41166,2430.5,2430.4,1.33756]
[1730747031729,0.41166,2430.5,2430.4,0.9259]
[1730747031936,0.41168,2430.4,2430.3,3.2078]
[1730747032125,0.41173,2430.1,2430.0,0.41173]
[1730747032432,0.41172,2430.2,2430.1,0.41172]
[1730747033831,0.41172,2430.2,2430.1,3.61952]
[1730747034034,0.41172,2430.2,2430.1,3.2078]
[1730747035540,4.23701,2430.4,2429.9,0.445]
[1730747035727,0.41176,2429.9,2429.8,2.49777]
[1730747035927,3.2078,2430.4,2429.8,2.49777]
[1730747035928,0.096,2430.4,2429.8,7.23062]
[1730747036235,0.41168,2430.4,2430.3,3.2078]
[1730747036735,0.41168,2430.4,2430.1,0.41172]
[1730747036736,0.41171,2430.2,2430.1,0.41172]
[1730747037139,0.41173,2430.1,2430.0,4.06714]
[1730747037634,1.89731,2430.4,2430.1,0.41172]
[1730747037635,0.41172,2430.2,2430.1,0.41172]
[1730747038526,0.41173,2430.1,2430.0,4.06713]
[1730747039037,0.41173,2430.1,2430.0,3.2078]
[1730747039745,0.41173,2430.1,2429.8,0.86]
[1730747039746,4.1152,2430.1,2429.8,0.86]
[1730747040039,3.6286,2430.2,2429.8,1.27177]
[1730747040040,0.41176,2429.9,2429.8,1.27177]
[1730747041029,0.83253,2430.2,2430.1,0.41173]
[1730747041634,0.41173,2430.2,2430.1,0.86363]
[1730747042341,0.41173,2430.2,2430.1,4.07143]
[1730747043241,1.3039,2430.5,2430.1,3.6597]
[1730747043441,0.41168,2430.4,2430.3,0.41169]
[1730747044241,41.21165,2430.6,2430.5,0.41166]
[1730747044545,40.8,2430.6,2430.5,3.61946]
[1730747045443,41.21164,2430.6,2430.5,3.61946]
[1730747045631,40.8,2430.6,2430.5,3.61946]
[1730747045832,41.21164,2430.6,2430.5,3.61946]
[1730747046438,0.8981,2430.8,2430.5,3.2078]
[1730747046743,0.8981,2430.8,2430.7,0.41163]
[1730747046937,41.6981,2430.8,2430.7,0.41163]
[1730747047140,40.8,2430.8,2430.7,0.41163]
[1730747047441,41.21161,2430.8,2430.7,0.41163]
[1730747047834,40.8,2430.8,2430.7,0.41163]
[1730747049446,41.21161,2430.8,2430.7,0.41163]
[1730747050041,0.41161,2430.9,2430.7,0.41163]
[1730747050342,5.0866,2431.1,2431.0,0.41157]
[1730747050343,1.26147,2431.1,2431.0,0.41157]
[1730747051046,0.41158,2431.0,2430.9,0.41157]
[1730747051646,0.8499,2431.1,2430.9,3.2078]
[1730747051950,0.41159,2431.0,2430.9,3.2078]
[1730747052146,0.8499,2431.1,2430.8,0.4116]
[1730747052347,0.4116,2430.9,2430.8,3.6194]
[1730747052843,0.4116,2430.9,2430.8,0.4116]
[1730747055050,0.41159,2431.0,2430.9,0.41157]
[1730747055958,0.41161,2430.9,2430.8,0.41159]
[1730747056546,0.41159,2431.0,2430.9,0.41158]
[1730747057355,0.41159,2431.0,2430.9,3.61938]
[1730747059348,0.41157,2431.1,2431.0,0.41155]
[1730747059548,0.41157,2431.1,2431.0,1.75035]
[1730747059745,0.41156,2431.2,2431.1,0.41154]
[1730747060344,41.7126,2431.3,2431.0,1.3388]
[1730747060540,0.41156,2431.1,2431.0,1.75037]
[1730747060751,42.74143,2431.3,2430.9,3.2078]
[1730747060752,0.41157,2431.0,2430.9,3.2078]
[1730747061676,0.41157,2431.0,2430.9,3.61939]
[1730747062075,0.41157,2431.0,2430.9,3.2078]
[1730747062276,4.52517,2431.0,2430.9,3.2078]
[1730747062882,4.52517,2431.0,2430.3,1.12523]
[1730747062883,0.41164,2430.6,2430.5,0.41165]
[1730747064073,0.41164,2430.6,2430.5,3.61945]
[1730747065286,1.02905,2430.8,2430.4,0.42]
[1730747065484,0.41166,2430.5,2430.4,0.42]
[1730747065975,0.41166,2430.5,2430.4,0.83168]
[1730747066241,0.41166,2430.5,2430.4,0.42]
[1730747066391,0.41168,2430.4,2430.3,0.4402]
[1730747066605,0.41169,2430.3,2430.2,3.6195]
[1730747067790,2.33016,2430.5,2430.2,3.6195]
[1730747067791,1.301,2430.5,2430.2,3.6195]
[1730747067995,0.41168,2430.4,2430.3,0.41168]
[1730747068992,0.41169,2430.3,2430.2,3.6195]
[1730747069895,0.41169,2430.4,2430.3,0.41168]
[1730747070291,0.41169,2430.3,2430.2,3.6195]
[1730747070793,0.41173,2430.2,2430.1,0.41172]
[1730747071090,0.41173,2430.1,2430.0,1.71983]
[1730747071390,41.21173,2430.1,2430.0,1.71983]
[1730747072102,41.21173,2430.1,2430.0,1.3081]
[1730747072383,0.41174,2430.0,2429.9,1.07813108]
[1730747072579,1.27674,2430.0,2429.9,1.07813108]
[1730747076573,8.59974,2430.0,2429.9,1.07813108]
[1730747077072,11.49280099,2430.0,2429.9,1.07813108]
[1730747077267,11.49280099,2430.0,2429.7,2.58116216]
[1730747077268,12.11045099,2430.0,2429.6,0.8838]
[1730747077468,0.41183,2429.6,2429.3,3.2078]
[1730747077663,0.41183,2429.6,2429.5,0.41182]
[1730747078881,3.85406099,2430.0,2429.4,1.3175]
[1730747078882,0.4118,2429.7,2429.6,0.4118]
[1730747079072,4.88344099,2430.0,2429.6,3.2078]
[1730747079073,1.89438,2430.0,2429.6,3.2078]
[1730747079372,0.41179,2429.8,2429.7,0.41178]
[1730747080172,1.89438,2430.0,2429.5,3.2078]
[1730747080476,0.41181,2429.7,2429.6,0.4118]
[1730747080680,1.89438,2430.0,2429.7,0.41179]
[1730747080681,0.41179,2429.8,2429.7,0.41179]
[1730747081879,0.41179,2429.8,2429.7,3.61959]
[1730747082382,0.41179,2429.8,2429.7,0.41179]
[1730747082675,0.41179,2429.8,2429.7,3.61959]
[1730747085583,40.8,2430.1,2429.4,2.34712]
[1730747085877,40.8,2430.1,2429.6,0.4118]
[1730747085878,0.4118,2429.7,2429.6,0.4118]
[1730747089887,0.41181,2429.6,2429.5,3.61962]
[1730747093488,0.41181,2429.7,2429.6,0.41179]
[1730747096383,0.41181,2429.6,2429.5,3.2078]
[1730747096986,0.41183,2429.5,2429.4,0.8882]
[1730747097482,0.41183,2429.5,2429.4,1.30005]
[1730747100992,0.41183,2429.5,2429.4,0.8882]
[1730747101491,0.41183,2429.5,2429.4,1.30005]
[1730747103989,0.41182,2429.7,2429.6,0.4118]
[1730747104199,0.41182,2429.7,2429.6,3.6196]
[1730747104395,0.096,2430.0,2429.9,0.41176]
[1730747104593,0.41171,2430.3,2430.2,0.4117]
[1730747104990,0.8819,2430.4,2430.3,0.41169]
[1730747105190,3.6609,2430.7,2430.1,3.2078]
[1730747105386,3.6609,2430.7,2430.5,0.41164]
[1730747105387,0.41165,2430.6,2430.5,0.41164]
[1730747106392,0.41166,2430.6,2430.5,0.41165]
[1730747106612,0.41166,2430.5,2430.4,0.87006]
[1730747106789,0.41166,2430.6,2430.5,0.41165]
[1730747107490,5.8208759,2430.7,2430.4,0.4584]
[1730747107686,0.41165,2430.6,2430.5,0.41166]
[1730747107886,3.6609,2430.7,2430.4,0.4584]
[1730747108087,0.41165,2430.6,2430.5,0.41165]
[1730747108289,3.2078,2430.7,2430.6,0.41164]
[1730747108898,3.61943,2430.7,2430.6,0.41164]
[1730747109091,3.2078,2430.7,2430.6,0.41164]
[1730747109290,3.61943,2430.7,2430.6,0.41164]
[1730747109793,3.2078,2430.7,2430.6,0.41164]
[1730747109993,3.61943,2430.7,2430.6,0.41164]
[1730747110497,2.5715559,2431.0,2430.6,5.14351]
[1730747110693,2.1599759,2431.0,2430.9,0.41159]
[1730747110896,2.5715459,2431.1,2431.0,0.41157]
[1730747111095,0.41157,2431.1,2431.0,0.41157]
[1730747111394,0.41154,2431.2,2431.1,0.41156]
[1730747111601,0.41157,2431.1,2431.0,0.41156]
[1730747111812,0.41157,2431.1,2431.0,0.86046]
[1730747112298,2.1599759,2431.3,2431.0,0.4489]
[1730747112499,2.1599759,2431.3,2430.8,0.9167]
[1730747112500,0.41157,2431.0,2430.8,4.1245]
[1730747112797,0.41157,2431.0,2430.9,0.41159]
[1730747113000,3.1887959,2431.3,2430.9,3.2078]
[1730747113199,0.41159,2430.9,2430.8,3.6604]
[1730747113402,1.0289,2431.1,2430.8,3.6604]
[1730747113403,0.41159,2431.0,2430.9,0.41158]
[1730747113699,0.41159,2431.0,2430.9,3.61938]
[1730747114302,0.41159,2431.0,2430.9,3.2078]
[1730747114490,3.0124759,2431.4,2430.9,7.3214]
[1730747114796,1.26402,2431.4,2431.3,0.41152]
[1730747115499,1.26402,2431.4,2431.3,0.41151]
[1730747115500,0.41151,2431.4,2431.3,0.41151]
[1730747115799,0.897,2431.6,2431.3,3.2078]
[1730747116000,0.897,2431.6,2431.4,0.41151]
[1730747116001,0.41151,2431.5,2431.4,0.41151]
[1730747118492,0.41148,2431.6,2431.5,0.41148]
[1730747118800,0.4115,2431.5,2431.4,0.4115]
[1730747118995,0.4115,2431.5,2431.3,3.2078]
[1730747118996,40.8,2431.8,2431.3,3.2078]
[1730747119303,0.41147,2431.7,2431.6,0.41147]
[1730747120194,40.8,2431.8,2431.7,0.41146]
[1730747120396,3.61921,2432.0,2431.9,0.41142]
[1730747120597,3.2078,2432.0,2431.9,0.41142]
[1730747120803,44.0078,2432.0,2431.9,0.41142]
[1730747121498,0.4114,2432.1,2431.8,0.4637]
[1730747121499,0.41139,2432.1,2431.8,0.4637]
[1730747121702,0.41139,2432.1,2432.0,0.41141]
[1730747121899,41.21139,2432.1,2432.0,0.41141]
[1730747122298,1.57213,2432.5,2432.1,0.41139]
[1730747122299,0.41139,2432.2,2432.1,0.41139]
[1730747122899,41.21139,2432.2,2432.1,0.41139]
[1730747123411,0.41139,2432.1,2432.0,0.41139]
[1730747124799,0.41141,2432.0,2431.9,3.61922]
[1730747125406,0.41141,2432.0,2431.9,7.73122]
[1730747125908,0.41141,2432.0,2431.9,0.41142]
[1730747126207,0.41141,2432.0,2431.9,3.61922]
[1730747126795,41.82845,2432.2,2431.8,0.4637]
[1730747127001,1.48438,2432.1,2431.8,3.2078]
[1730747127195,0.41142,2431.9,2431.8,3.2078]
[1730747127402,0.41144,2431.8,2431.7,0.85614]
[1730747127601,0.41144,2431.8,2431.7,1.31294]
[1730747128401,0.41144,2431.8,2431.7,0.9015]
[1730747128598,0.41144,2431.9,2431.8,0.41143]
[1730747128803,0.4646,2432.0,2431.7,0.9015]
[1730747129107,0.41144,2431.8,2431.7,0.9015]
[1730747129709,0.41144,2431.8,2431.7,0.4447]
[1730747130304,0.41144,2431.8,2431.7,0.85616]
[1730747130909,0.41143,2431.9,2431.8,0.41142]
[1730747131410,0.41142,2432.0,2431.9,0.41141]
[1730747131803,0.41144,2431.8,2431.7,0.4447]
[1730747132105,0.41146,2431.7,2431.6,0.41147]
[1730747135108,0.41146,2431.7,2431.6,3.61927]
[1730747139317,0.41146,2431.7,2431.6,3.2078]
[1730747139515,4.52426,2431.7,2431.6,3.2078]
[1730747141923,0.41152,2431.3,2431.2,0.41154]
[1730747142407,0.4271,2431.4,2431.0,5.92014]
[1730747142408,0.4271,2431.4,2431.0,4.8912]
[1730747142608,0.41156,2431.2,2431.1,0.41154]
[1730747143522,0.41154,2431.3,2431.2,0.41152]
[1730747146011,0.4115,2431.5,2431.4,0.41149]
[1730747146223,0.4462,2431.6,2431.5,0.41147]
[1730747146224,0.41148,2431.6,2431.5,0.41147]
[1730747146428,0.41147,2431.7,2431.6,0.41146]
[1730747148424,0.87365,2431.8,2431.7,0.41146]
[1730747148922,0.41145,2431.8,2431.7,0.41146]
[1730747149724,0.4295,2431.9,2431.6,0.4303]
[1730747150027,1.45807,2431.9,2431.5,1.33008]
[1730747150218,0.41147,2431.6,2431.5,1.33008]
[1730747150528,0.41145,2431.8,2431.7,0.41144]
[1730747150719,0.41143,2432.0,2431.9,0.41141]
[1730747150920,3.6192,2432.1,2432.0,0.41141]
[1730747151819,7.3198,2432.1,2431.5,2.73743]
[1730747152018,0.41146,2431.8,2431.7,0.41145]
[1730747153122,0.8508,2431.9,2431.5,0.8906]
[1730747153318,4.23641,2431.8,2431.4,3.6193]
[1730747153521,0.41149,2431.5,2431.4,3.2078]
[1730747153717,0.41149,2431.5,2431.3,1.29602]
[1730747153718,1.02867,2431.7,2431.3,0.4389]
[1730747153920,1.26801,2431.4,2431.3,0.4389]
[1730747154224,0.41151,2431.4,2431.3,0.4389]
[1730747154437,0.41152,2431.3,2431.2,0.82993]
[1730747154721,0.41152,2431.3,2431.2,1.37995522]
[1730747155120,0.41152,2431.3,2431.2,1.37987683]
[1730747155318,0.41156,2431.2,2431.1,0.41155]
[1730747156445,0.41156,2431.2,2431.1,0.55044538]
[1730747156662,0.41156,2431.1,2431.0,3.2078]
[1730747156846,0.41156,2431.1,2431.0,4.16985784]
[1730747157042,0.41155,2431.2,2431.1,0.41154]
[1730747157244,45.0366,2431.4,2431.0,3.2078]
[1730747157451,0.41156,2431.1,2431.0,3.61936]
[1730747157756,0.41156,2431.1,2431.0,4.16995121]
[1730747158138,0.41156,2431.1,2431.0,0.96215121]
[1730747158650,0.41156,2431.1,2431.0,0.41156]
[1730747160422,0.41156,2431.1,2431.0,0.9624075]
[1730747161126,0.41156,2431.1,2431.0,0.41156]
[1730747161327,0.41155,2431.2,2431.1,0.41155]
[1730747161519,6.2242759,2431.5,2431.1,0.4257]
[1730747161831,0.41153,2431.3,2431.2,0.41153]
[1730747163937,6.2242759,2431.5,2431.1,0.4257]
[1730747164132,0.8565,2431.5,2431.1,1.4546]
[1730747164336,41.30747,2431.7,2431.4,2.89306099]
[1730747164535,0.41146,2431.7,2431.6,0.41146]
[1730747165034,41.82857,2431.9,2431.5,1.3128]
[1730747165240,0.41147,2431.6,2431.5,1.72428]
[1730747165424,41.82857,2431.9,2431.5,1.72428]
[1730747165623,0.41146,2431.7,2431.6,0.41146]
[1730747166640,41.21143,2431.9,2431.8,0.41144]
[1730747166940,0.41143,2431.9,2431.8,0.41144]
[1730747169331,46.16059251,2432.0,2431.5,4.5206]
[1730747169527,0.41146,2431.7,2431.6,0.41146]
[1730747169734,0.41147,2431.6,2431.5,1.3128]
[1730747169933,0.41147,2431.7,2431.5,1.3128]
[1730747170129,0.41147,2431.7,2431.6,0.41146]
[1730747170435,0.4441,2431.8,2431.5,1.3128]
[1730747170637,0.41145,2431.8,2431.7,0.41146]
[1730747170832,0.41143,2431.9,2431.8,0.41144]
[1730747171031,2.15279251,2432.1,2431.6,7.12955099]
[1730747171233,2.15279251,2432.2,2431.9,2.89306099]
[1730747171436,0.4114,2432.1,2432.0,1.32629]
[1730747171745,40.8,2432.1,2432.0,1.74949]
[1730747171940,2.15279251,2432.3,2432.2,0.41135]
[1730747171941,0.41136,2432.3,2432.2,0.41135]
[1730747172236,5.36059251,2432.4,2432.3,0.41135]
[1730747172441,3.11689064,2432.5,2432.3,0.41135]
[1730747172442,2.15279251,2432.5,2432.4,0.41134]
[1730747172735,0.41132,2432.6,2432.5,0.41132]
[1730747172959,41.21131,2432.6,2432.5,0.41132]
[1730747173173,41.21131,2432.6,2432.5,7.41558099]
[1730747173174,40.8,2432.6,2432.5,7.41558099]
[1730747173469,0.50726,2432.9,2432.8,0.41127]
[1730747173756,0.41126,2432.9,2432.8,0.41127]
[1730747173963,41.21126,2432.9,2432.8,0.41127]
[1730747174259,40.8,2432.9,2432.7,0.41128]
[1730747174464,40.8,2432.9,2432.8,0.41127]